bitfinex-derivatives/quotes_ETHF0:USTF0_20250205
["timestamp","ask_amount","ask_price","bid_price","bid_amount"]
[1738714584778,3.2078,2718.1,2718.0,0.00551531]
[1738714584985,3.2078,2718.4,2718.0,0.00551531]
[1738714585187,0.00551531,2718.6,2718.0,0.00551531]
[1738714585988,40.8,2718.5,2718.0,3.21331531]
[1738714586781,0.00551531,2718.6,2718.0,3.21331531]
[1738714587087,0.00551531,2718.6,2718.3,3.2078]
[1738714587388,0.00551531,2718.6,2716.4,3.2078]
[1738714587389,0.58847,2718.2,2716.4,3.2078]
[1738714587694,3.2078,2717.2,2716.1,3.2078]
[1738714587896,3.2078,2717.2,2716.5,3.2078]
[1738714588187,3.2078,2716.8,2715.9,3.2078]
[1738714588395,3.2078,2716.8,2716.2,3.2078]
[1738714589498,0.00551531,2717.1,2716.5,3.2078]
[1738714589694,0.00551531,2717.1,2717.0,3.2078]
[1738714589993,0.00551531,2717.1,2717.0,8.0818]
[1738714590300,0.00551531,2717.1,2717.0,13.0818]
[1738714590687,0.00551531,2717.1,2717.0,8.0818]
[1738714591794,0.00551531,2717.1,2717.0,4.874]
[1738714592699,40.80551531,2717.1,2717.0,4.874]
[1738714592995,40.80551531,2717.1,2716.9,3.2078]
[1738714593501,40.80551531,2717.1,2716.6,3.2078]
[1738714594204,40.80551531,2717.1,2716.3,3.7775]
[1738714595697,40.80551531,2717.1,2716.3,0.5697]
[1738714596300,3.2078,2716.9,2716.3,0.5697]
[1738714597103,40.80551531,2717.1,2716.0,3.2078]
[1738714597104,3.2078,2716.6,2716.0,3.2078]
[1738714597398,40.80551531,2717.1,2716.0,3.2078]
[1738714597399,3.2078,2716.9,2716.0,3.2078]
[1738714597599,3.2078,2716.9,2716.3,3.2078]
[1738714598596,40.80551531,2717.1,2716.3,8.0818]
[1738714598902,40.80551531,2717.1,2716.6,3.2078]
[1738714600702,40.80551531,2717.1,2716.9,3.2078]
[1738714601106,40.80551531,2717.1,2717.0,1.1378]
[1738714601107,40.8,2717.1,2717.0,1.1378]
[1738714601609,40.8,2717.1,2717.0,6.1378]
[1738714601805,0.5465,2718.6,2717.0,11.0118]
[1738714602106,3.2078,2719.1,2718.1,3.2078]
[1738714602310,40.8,2718.5,2718.2,4.874]
[1738714602599,3.2078,2720.1,2718.4,3.2078]
[1738714602802,3.2078,2720.1,2719.1,3.2078]
[1738714603001,0.00551531,2719.5,2719.1,3.2078]
[1738714603308,0.00551531,2719.5,2719.4,3.2078]
[1738714603696,40.80551531,2719.5,2719.4,8.0818]
[1738714604711,40.80551531,2719.5,2719.3,0.00551531]
[1738714604712,44.01331531,2719.5,2719.3,0.00551531]
[1738714604894,40.80551531,2719.5,2719.3,0.00551531]
[1738714605101,40.80551531,2719.5,2719.4,4.874]
[1738714605297,3.2078,2720.7,2719.4,8.80879698]
[1738714605502,3.2078,2720.7,2720.0,3.2078]
[1738714605703,3.2078,2720.7,2720.3,3.2078]
[1738714605909,1.6986,2721.7,2720.0,4.874]
[1738714605910,40.8,2720.4,2720.0,4.874]
[1738714606106,40.8,2720.4,2720.3,3.2078]
[1738714606406,1.1292,2721.7,2720.3,8.0818]
[1738714606605,2.93601,2724.1,2719.6,1.491]
[1738714606606,3.2078,2722.1,2721.4,3.2078]
[1738714606802,3.2078,2722.7,2721.4,3.2078]
[1738714607106,40.8,2722.0,2721.7,3.2078]
[1738714609613,40.8,2722.0,2721.5,0.00551531]
[1738714609614,3.2078,2721.9,2721.5,0.00551531]
[1738714610103,40.8,2722.0,2721.5,0.00551531]
[1738714610705,3.2078,2721.9,2721.5,0.00551531]
[1738714612114,3.2078,2721.6,2721.5,0.00551531]
[1738714612317,3.2078,2721.6,2720.2,8.0818]
[1738714612516,40.8,2720.3,2720.2,3.2078]
[1738714613008,40.8,2720.3,2719.2,3.2078]
[1738714613210,3.2078,2720.0,2719.5,3.2078]
[1738714613609,0.00551531,2720.0,2719.5,3.21331531]
[1738714613807,0.00551531,2720.0,2719.8,3.2078]
[1738714614012,0.00551531,2720.0,2719.6,4.874]
[1738714617317,0.00551531,2720.0,2719.8,3.2078]
[1738714617511,0.00551531,2720.0,2719.8,8.0818]
[1738714617812,0.00551531,2720.0,2719.8,13.0818]
[1738714618219,0.00551531,2720.0,2719.8,8.0818]
[1738714619816,0.00551531,2720.0,2719.9,3.93479698]
[1738714620118,3.2078,2721.2,2719.9,11.78679698]
[1738714620312,40.8,2721.1,2720.6,3.2078]
[1738714620714,40.8,2721.1,2720.7,4.874]
[1738714621616,3.2078,2721.0,2720.7,4.874]
[1738714622312,40.8,2721.1,2720.7,4.874]
[1738714622513,40.8,2721.1,2720.9,3.2078]
[1738714622720,40.8,2721.1,2720.7,4.874]
[1738714623223,3.2078,2721.0,2720.7,4.874]
[1738714623421,3.2078,2721.0,2719.9,8.09805147]
[1738714623422,3.2078,2721.0,2719.9,3.21085449]
[1738714623613,3.2078,2720.6,2719.9,3.21085449]
[1738714625018,3.2078,2720.5,2719.9,0.00305449]
[1738714625222,3.2078,2720.2,2719.9,0.00305449]
[1738714625721,40.8,2720.1,2719.9,0.00305449]
[1738714628719,3.2078,2720.0,2719.9,0.00305449]
[1738714629225,0.58811,2719.9,2719.5,0.00551531]
[1738714629416,3.2078,2719.6,2719.5,0.00551531]
[1738714629915,3.2078,2719.6,2718.2,3.2078]
[1738714629916,49.06726019,2719.6,2718.2,3.2078]
[1738714630120,3.2078,2718.8,2717.9,3.2078]
[1738714631130,3.2078,2718.8,2718.1,0.00551531]
[1738714631830,1.49,2719.1,2718.2,3.2078]
[1738714632126,1.7248,2719.3,2718.2,3.2078]
[1738714632127,1.1581,2719.3,2718.2,3.2078]
[1738714632522,1.1581,2719.3,2718.5,3.2078]
[1738714632729,40.8,2719.6,2718.5,3.2078]
[1738714632928,3.2078,2719.2,2718.3,4.874]
[1738714634227,40.8,2719.6,2718.2,4.3797]
[1738714634228,3.2078,2718.9,2718.2,3.2078]
[1738714634429,3.2078,2718.3,2718.1,0.00551531]
[1738714635320,40.8,2718.2,2718.1,0.00551531]
[1738714637419,0.00551531,2718.4,2718.1,0.00551531]
[1738714638240,3.2078,2720.2,2718.4,0.58842]
[1738714638419,3.2078,2720.2,2719.0,3.2078]
[1738714638420,0.05945009,2720.1,2719.0,3.2078]
[1738714638625,3.2078,2719.7,2719.0,3.2078]
[1738714638819,3.2078,2719.4,2718.8,4.874]
[1738714639029,3.2078,2719.4,2718.7,3.2078]
[1738714639527,0.00551531,2719.3,2718.7,3.2078]
[1738714640033,0.00551531,2719.3,2718.4,3.2078]
[1738714641030,0.00551531,2719.3,2718.7,3.2078]
[1738714641225,0.00551531,2719.3,2719.0,3.2078]
[1738714643741,0.00551531,2719.3,2718.8,5.9809]
[1738714644236,40.8,2719.2,2718.8,5.9809]
[1738714644437,40.8,2719.2,2719.0,3.2078]
[1738714644636,40.8,2719.2,2718.8,4.874]
[1738714644826,3.2078,2719.1,2718.4,3.2078]
[1738714645743,3.2078,2719.1,2718.7,3.2078]
[1738714647039,40.8,2719.2,2718.7,3.2078]
[1738714647428,3.2078,2718.9,2718.1,5.47511531]
[1738714647632,3.2078,2718.9,2718.1,0.00551531]
[1738714648239,40.8,2719.2,2718.1,0.00551531]
[1738714648240,3.2078,2718.3,2718.1,0.00551531]
[1738714648939,3.2078,2718.3,2717.1,4.874]
[1738714648940,0.58849,2718.1,2717.1,4.874]
[1738714649131,3.2078,2717.6,2717.0,3.7651]
[1738714649331,3.2078,2717.6,2717.0,3.2078]
[1738714649538,1.1007,2718.2,2716.6,5.4593]
[1738714649539,3.2078,2717.3,2716.6,0.5853]
[1738714649732,40.8,2717.1,2716.6,0.5853]
[1738714650140,40.8,2717.1,2716.7,0.00551531]
[1738714651042,40.8,2717.1,2716.9,3.2078]
[1738714652240,40.8,2717.1,2716.7,0.00551531]
[1738714653040,0.00551531,2717.2,2716.9,3.2078]
[1738714654143,0.00551531,2717.2,2717.0,8.80879698]
[1738714654335,1.1007,2718.2,2717.0,8.80879698]
[1738714654336,3.2078,2718.2,2717.0,8.80879698]
[1738714654539,3.2078,2718.2,2717.0,3.93479698]
[1738714654740,40.8,2718.1,2717.2,3.2078]
[1738714655440,0.00551531,2717.9,2717.5,3.2078]
[1738714655640,3.2078,2719.2,2717.8,7.14259698]
[1738714655940,3.2078,2719.2,2718.6,3.2078]
[1738714656245,3.2078,2719.2,2718.7,3.2078]
[1738714656246,40.8,2719.0,2718.7,3.2078]
[1738714656946,40.8,2719.0,2718.7,8.0818]
[1738714657149,40.8,2719.0,2718.8,4.874]
[1738714657341,40.8,2719.0,2718.8,5.4543]
[1738714657543,0.00551531,2719.1,2718.9,4.874]
[1738714657740,3.2078,2720.1,2719.1,3.93479698]
[1738714658043,3.2078,2720.4,2719.6,3.2078]
[1738714658245,3.2078,2720.1,2719.1,3.93479698]
[1738714658544,3.2078,2719.8,2718.9,3.2078]
[1738714659140,3.2078,2719.5,2718.9,3.2078]
[1738714659338,3.2078,2719.8,2718.9,3.2078]
[1738714660944,0.00551531,2719.9,2718.9,3.2078]
[1738714661144,0.00551531,2719.9,2718.8,0.5803]
[1738714661145,0.00551531,2719.9,2719.2,3.2078]
[1738714661544,0.00551531,2719.9,2719.6,3.2078]
[1738714662146,0.00551531,2719.9,2719.7,0.5547]
[1738714662747,0.00551531,2719.9,2719.8,4.874]
[1738714662947,3.2078,2720.9,2719.8,4.874]
[1738714663142,3.2078,2721.5,2720.8,3.2078]
[1738714663347,0.5806,2721.8,2721.1,3.2078]
[1738714663348,40.8,2721.4,2721.1,3.2078]
[1738714663946,0.5806,2722.6,2721.2,3.93479698]
[1738714664249,3.2078,2723.0,2721.8,3.2078]
[1738714664454,0.00551531,2722.2,2722.1,3.2078]
[1738714664954,40.80551531,2722.2,2721.4,3.2078]
[1738714665144,3.2078,2721.9,2721.4,3.2078]
[1738714665950,40.80551531,2722.2,2721.0,3.21331531]
[1738714665951,3.2078,2721.6,2721.0,3.21331531]
[1738714666152,3.2078,2721.6,2721.0,0.00551531]
[1738714667557,3.2078,2721.2,2721.0,0.00551531]
[1738714667749,0.62562195,2721.1,2720.0,3.2078]
[1738714667948,3.2078,2721.0,2720.0,3.2078]
[1738714668354,3.26722702,2720.9,2720.0,3.2078]
[1738714668552,3.2078,2720.6,2720.0,3.2078]
[1738714669051,3.2078,2720.6,2720.2,0.00551531]
[1738714669955,0.00551531,2720.7,2720.2,0.00551531]
[1738714670351,3.2078,2720.6,2720.2,0.00551531]
[1738714670551,40.8,2720.3,2720.2,0.00551531]
[1738714672260,44.0078,2720.3,2719.5,3.2078]
[1738714672457,44.0078,2720.3,2719.1,7.14259698]
[1738714672657,3.2078,2720.0,2719.1,3.2078]
[1738714672860,40.8,2720.3,2718.7,3.2078]
[1738714672861,3.2078,2719.7,2718.7,3.2078]
[1738714673058,3.2078,2719.4,2718.4,3.2078]
[1738714673357,1.111,2719.9,2718.5,3.2078]
[1738714673358,3.2078,2719.1,2718.5,3.2078]
[1738714673660,0.00551531,2719.2,2718.7,3.2078]
[1738714673862,0.00551531,2719.2,2718.8,3.2078]
[1738714674868,3.2078,2719.1,2718.6,0.00551531]
[1738714677767,40.8,2719.1,2718.6,0.00551531]
[1738714679966,40.8,2719.1,2718.8,3.2078]
[1738714680175,40.8,2719.1,2718.6,0.00551531]
[1738714680468,0.00551531,2719.2,2718.6,0.00551531]
[1738714680469,0.00551531,2719.2,2719.0,3.2078]
[1738714680670,3.2078,2720.3,2719.0,3.7689]
[1738714680876,3.2078,2720.3,2719.4,3.2078]
[1738714681071,40.8,2720.2,2719.4,3.2078]
[1738714681270,3.2078,2719.5,2719.0,3.7689]
[1738714681470,41.3455,2720.2,2719.0,3.7689]
[1738714681471,3.2078,2719.8,2719.0,3.7689]
[1738714681978,40.8,2719.4,2719.0,3.7689]
[1738714682177,40.8,2719.4,2719.0,3.2078]
[1738714682576,40.8,2719.4,2718.7,4.874]
[1738714682577,40.8,2719.4,2719.3,3.2078]
[1738714682774,40.8,2719.4,2719.0,3.2078]
[1738714683172,40.8,2719.4,2718.7,3.2078]
[1738714683474,3.2078,2719.2,2718.7,3.2078]
[1738714683676,3.2078,2718.9,2718.6,0.00551531]
[1738714684173,3.79614,2718.9,2718.6,0.00551531]
[1738714684371,3.79614,2718.9,2717.3,3.93479698]
[1738714684372,0.58841,2718.5,2717.3,3.2078]
[1738714684575,3.2078,2717.7,2717.0,3.8008]
[1738714684782,3.2078,2717.7,2717.0,3.2078]
[1738714684972,40.8,2717.6,2717.0,3.2078]
[1738714685581,40.80551531,2717.6,2717.0,3.21331531]
[1738714685779,40.80551531,2717.6,2717.0,0.00551531]
[1738714686271,3.2078,2717.4,2717.0,0.00551531]
[1738714686975,3.2078,2717.1,2716.3,3.2078]
[1738714687469,3.2078,2717.4,2716.3,3.2078]
[1738714687877,3.2078,2717.4,2716.6,3.2078]
[1738714688075,3.2078,2717.4,2716.3,3.2078]
[1738714688281,3.2078,2717.1,2716.7,0.00551531]
[1738714689476,3.2078,2717.3,2716.7,0.00551531]
[1738714690675,0.5864,2717.5,2716.7,3.21331531]
[1738714692085,0.00551531,2717.6,2717.4,3.2078]
[1738714692973,0.00551531,2717.6,2717.4,8.0818]
[1738714693174,0.00551531,2717.6,2717.5,4.874]
[1738714693483,44.0078,2718.4,2717.5,4.874]
[1738714693683,40.8,2718.4,2717.7,3.2078]
[1738714693886,40.8,2718.4,2718.0,3.2078]
[1738714694073,3.2078,2718.2,2717.6,4.874]
[1738714694275,3.2078,2718.2,2717.4,3.2078]
[1738714694586,3.21331531,2718.2,2717.4,3.2078]
[1738714694785,0.05949979,2718.1,2717.4,3.2078]
[1738714695189,3.2078,2717.6,2717.0,4.874]
[1738714695486,0.58853,2718.0,2716.2,3.2078]
[1738714695487,3.2078,2717.2,2716.2,3.2078]
[1738714695692,3.2078,2716.8,2715.9,4.874]
[1738714695888,3.2078,2716.8,2715.9,3.2078]
[1738714696485,3.2078,2717.1,2715.9,3.2078]
[1738714696686,3.2078,2716.8,2715.9,3.2078]
[1738714696879,3.21331531,2716.8,2716.2,0.00551531]
[1738714697583,3.21331531,2716.8,2716.2,3.21331531]
[1738714697991,3.21331531,2716.8,2716.2,0.00551531]
[1738714698290,3.2078,2716.5,2716.2,0.00551531]
[1738714698686,40.8,2716.3,2716.2,0.00551531]
[1738714698986,0.00551531,2716.8,2716.2,0.00551531]
[1738714699186,0.00551531,2716.8,2716.5,3.2078]
[1738714699386,40.8,2716.7,2716.4,3.2078]
[1738714700382,0.00551531,2716.8,2716.4,3.2078]
[1738714700588,0.00551531,2716.8,2716.7,3.2078]
[1738714700799,0.00551531,2716.8,2716.4,3.2078]
[1738714701089,40.80551531,2716.8,2716.4,3.21094302]
[1738714701786,40.80551531,2716.8,2716.7,3.2078]
[1738714702690,40.80551531,2716.8,2716.4,3.21094302]
[1738714706593,40.80551531,2716.8,2716.7,3.2078]
[1738714707288,40.80551531,2716.8,2716.4,0.00314302]
[1738714707489,3.2078,2716.7,2716.4,0.00314302]
[1738714707894,40.8,2716.5,2716.4,0.00314302]
[1738714708284,40.8,2716.5,2716.4,3.21094302]
[1738714708890,40.8,2716.5,2716.4,8.21094302]
[1738714709286,0.00551531,2716.8,2716.4,13.67674302]
[1738714709488,3.2078,2717.9,2716.7,3.2078]
[1738714709691,40.8,2717.6,2716.8,8.0818]
[1738714710090,40.8,2717.6,2717.1,3.2078]
[1738714710394,40.8,2717.6,2716.8,8.0818]
[1738714710596,40.80551531,2717.6,2716.8,8.0818]
[1738714710787,44.01331531,2717.6,2716.8,8.0818]
[1738714711492,44.01331531,2717.6,2716.8,4.874]
[1738714711893,3.2078,2717.2,2716.5,3.2078]
[1738714712088,3.2078,2717.2,2716.6,4.874]
[1738714712393,40.80551531,2717.6,2717.1,3.2078]
[1738714712998,3.2078,2717.4,2716.7,3.2078]
[1738714713193,3.2078,2717.1,2716.7,3.2078]
[1738714714096,3.2078,2717.1,2716.5,3.2078]
[1738714715201,40.80551531,2717.6,2716.8,3.2078]
[1738714715395,40.80551531,2717.6,2716.9,4.874]
[1738714715697,40.80551531,2717.6,2717.1,3.2078]
[1738714715897,40.80551531,2717.6,2717.4,3.2078]
[1738714718793,0.00551531,2717.6,2717.4,3.2078]
[1738714719002,0.00551531,2717.6,2717.4,8.7888]
[1738714719199,0.00551531,2717.6,2717.4,3.7888]
[1738714719805,40.8,2717.5,2717.4,3.7888]
[1738714720306,40.8,2717.5,2717.4,8.7888]
[1738714722198,40.8,2717.5,2717.4,3.7888]
[1738714722397,40.8,2717.5,2717.4,3.2078]
[1738714725009,40.8,2717.5,2716.8,4.874]
[1738714725205,3.2078,2717.1,2716.4,4.87714302]
[1738714725406,0.58874,2717.0,2716.4,0.00314302]
[1738714725611,40.8,2716.5,2716.4,0.00314302]
[1738714725811,44.0078,2716.5,2716.4,0.00314302]
[1738714727307,40.8,2716.5,2716.4,0.00314302]
[1738714727610,0.584,2717.0,2716.4,0.00314302]
[1738714727611,0.5915,2717.7,2716.4,9.87714302]
[1738714727809,3.7918,2717.8,2716.9,3.2078]
[1738714728001,40.8,2717.5,2716.9,3.2078]
[1738714728809,40.8,2717.5,2716.6,3.2078]
[1738714729013,3.2078,2717.2,2716.6,3.2078]
[1738714729208,3.2078,2717.2,2716.4,0.00314302]
[1738714730618,0.5904,2717.4,2716.8,3.2078]
[1738714731005,40.8,2717.5,2717.2,3.2078]
[1738714732417,40.8,2717.5,2716.9,3.2078]
[1738714732711,40.8,2717.5,2716.6,8.0818]
[1738714732910,40.8,2717.5,2716.6,3.2078]
[1738714734115,0.584,2717.8,2716.6,3.2078]
[1738714734116,3.2078,2717.3,2716.6,3.2078]
[1738714734514,40.8,2717.0,2716.6,3.2078]
[1738714734815,0.584,2717.8,2716.9,6.7195073]
[1738714735214,3.2078,2718.9,2717.3,3.2078]
[1738714735517,0.5867,2718.8,2717.9,6.7195073]
[1738714735711,40.8,2718.5,2717.9,6.7195073]
[1738714735913,40.8,2718.5,2717.9,3.2078]
[1738714736517,3.2078,2718.3,2717.9,0.00551531]
[1738714738014,40.80551531,2718.5,2717.9,3.21331531]
[1738714738015,0.5801,2718.2,2717.9,3.21331531]
[1738714740422,0.5801,2718.2,2717.9,0.00551531]
[1738714741321,40.8,2718.0,2717.9,0.00551531]
[1738714742315,0.00551531,2718.5,2717.9,16.59902261]
[1738714742521,0.559,2719.4,2718.3,3.2078]
[1738714742724,0.05946413,2719.3,2718.3,3.2078]
[1738714742928,3.2078,2718.8,2718.3,3.2078]
[1738714743110,40.8,2719.2,2718.0,3.2078]
[1738714743423,3.2078,2718.6,2717.9,4.87951531]
[1738714743722,0.00551531,2718.5,2717.9,4.87951531]
[1738714744320,0.00551531,2718.5,2717.9,0.00551531]
[1738714744620,0.57521531,2718.5,2717.9,0.00551531]
[1738714745218,1.15441531,2718.5,2717.9,0.00551531]
[1738714746120,3.79626,2718.3,2717.9,0.00551531]
[1738714746314,3.2078,2718.0,2716.6,3.2078]
[1738714746515,3.2078,2717.4,2716.6,3.2078]
[1738714746914,0.5585,2717.3,2716.6,3.2078]
[1738714747117,3.2078,2717.1,2716.6,3.2078]
[1738714747523,0.5585,2717.3,2716.6,3.21331531]
[1738714747823,0.00551531,2717.1,2716.6,3.21331531]
[1738714748421,40.8,2716.9,2716.6,3.21331531]
[1738714749918,44.0078,2716.9,2716.6,0.00551531]
[1738714750216,40.8,2716.9,2716.6,0.00551531]
[1738714751219,44.0078,2716.9,2716.6,0.00551531]
[1738714751427,1.13299,2716.8,2715.9,3.2078]
[1738714751623,3.2078,2716.6,2715.9,3.2078]
[1738714752423,4.34078,2716.8,2715.9,3.2078]
[1738714752625,0.05952811,2716.7,2716.0,0.00551531]
[1738714753017,0.05953137,2716.6,2716.0,0.00551531]
[1738714753328,3.2078,2716.3,2716.0,0.00551531]
[1738714753816,40.8,2716.2,2716.0,0.00551531]
[1738714754425,40.8,2716.2,2714.5,3.2078]
[1738714754426,0.58901,2715.8,2714.5,3.2078]
[1738714754724,3.2078,2715.5,2714.3,0.5592]
[1738714754923,2.076,2715.8,2714.2,3.2078]
[1738714754924,3.2078,2714.8,2714.2,3.2078]
[1738714755419,3.21332588,2714.8,2714.2,3.21332588]
[1738714755931,0.00552588,2714.8,2714.2,3.21332588]
[1738714758025,3.21332588,2714.8,2714.2,3.21332588]
[1738714758223,0.00552588,2714.8,2714.2,3.21332588]
[1738714758432,3.21332588,2714.8,2714.2,3.21332588]
[1738714760531,0.00552588,2714.8,2714.2,3.21332588]
[1738714760835,0.00552588,2714.8,2714.5,3.2078]
[1738714761324,0.00552588,2714.8,2714.3,1.1204]
[1738714761732,40.8,2714.7,2714.3,1.1204]
[1738714762120,3.2078,2714.5,2714.2,0.00552588]
[1738714762526,0.05951675,2714.4,2713.6,3.2078]
[1738714762930,0.00552588,2714.8,2714.1,3.95850913]
[1738714763125,0.00552588,2714.8,2714.1,0.5886]
[1738714763326,40.8,2714.2,2714.0,3.2078]
[1738714764428,0.00552588,2714.8,2714.0,3.2078]
[1738714764627,0.00552588,2714.8,2713.8,0.00552588]
[1738714764628,0.00552588,2714.8,2714.1,7.16630913]
[1738714765129,40.8,2714.7,2714.1,7.16630913]
[1738714765530,40.8,2714.7,2714.1,3.2078]
[1738714765725,40.8,2714.7,2714.4,3.2078]
[1738714766934,40.8,2714.7,2714.5,0.5571]
[1738714767731,40.8,2714.7,2714.5,1.1568]
[1738714768929,3.2078,2716.0,2714.6,4.874]
[1738714769133,3.2078,2716.0,2715.2,3.2078]
[1738714769436,3.2078,2716.0,2715.3,0.5739]
[1738714769835,40.8,2715.4,2715.3,0.5739]
[1738714770437,0.00552588,2715.9,2715.3,14.40505872]
[1738714770635,3.7701,2716.8,2715.8,3.2078]
[1738714770830,3.7701,2716.8,2716.1,3.2078]
[1738714771144,3.7701,2716.8,2715.6,3.2078]
[1738714771145,40.8,2716.2,2715.6,3.2078]
[1738714771339,40.8,2716.2,2715.3,3.7817]
[1738714771638,3.2078,2716.0,2715.3,3.7817]
[1738714771837,40.8,2716.2,2715.3,3.7817]
[1738714772043,0.00552588,2716.0,2715.3,3.7817]
[1738714772732,0.00552588,2716.0,2715.3,7.73885872]
[1738714772941,0.00552588,2716.0,2715.5,3.2078]
[1738714773135,3.21332588,2716.0,2715.5,3.2078]
[1738714773936,0.00552588,2716.0,2715.5,3.2078]
[1738714774142,0.00552588,2716.0,2715.8,3.2078]
[1738714777842,40.8,2715.9,2715.8,3.2078]
[1738714781043,0.00552588,2716.0,2715.8,3.2078]
[1738714781545,40.80552588,2716.0,2715.8,3.2078]
[1738714782739,40.80552588,2716.0,2715.9,3.51304781]
[1738714782941,40.80552588,2716.0,2715.8,3.2078]
[1738714783835,40.80552588,2716.0,2715.9,3.51304781]
[1738714784042,40.80552588,2716.0,2715.8,3.2078]
[1738714784340,40.80552588,2716.0,2715.5,3.51304781]
[1738714784341,44.01332588,2716.0,2715.3,3.2078]
[1738714785247,44.01332588,2716.0,2715.1,11.37057369]
[1738714785444,44.01332588,2716.0,2715.3,3.2078]
[1738714786448,3.21332588,2716.0,2715.3,3.2078]
[1738714786949,40.8,2715.7,2715.3,3.2078]
[1738714788840,40.8,2715.7,2715.6,3.2078]
[1738714793442,0.00552588,2716.0,2715.6,8.2078]
[1738714793647,0.00552588,2716.0,2715.9,6.72084781]
[1738714794551,40.80552588,2716.0,2715.9,6.72084781]
[1738714796952,0.5748,2717.0,2715.9,17.18380781]
[1738714797260,0.5748,2717.0,2716.6,6.72084781]
[1738714797447,0.5418,2717.5,2716.9,3.2078]
[1738714797649,0.5418,2717.5,2717.2,3.51304781]
[1738714797953,0.5696,2718.1,2717.2,3.51304781]
[1738714797954,40.8,2717.4,2717.2,6.72084781]
[1738714798145,0.5842,2718.4,2717.3,3.51304781]
[1738714798351,0.5842,2718.4,2718.1,3.2078]
[1738714798547,0.5916,2719.2,2718.2,3.51304781]
[1738714798760,0.5696,2719.4,2719.1,3.2078]
[1738714798955,0.5842,2719.8,2719.1,3.2078]
[1738714799261,0.00551562,2719.5,2719.1,3.94455197]
[1738714799563,0.00551562,2719.5,2719.2,3.21331562]
[1738714799758,40.8,2719.3,2719.2,3.21331562]
[1738714800358,40.8,2719.3,2719.2,0.00551562]
[1738714800753,40.8,2719.3,2719.2,3.21331562]
[1738714801958,39.3267,2719.3,2719.2,8.21331562]
[1738714802158,0.5485,2721.1,2719.2,13.08731562]
[1738714802364,0.5485,2721.1,2720.7,3.2078]
[1738714802564,3.78158476,2720.8,2720.7,3.2078]
[1738714802766,40.8,2720.8,2720.7,3.2078]
[1738714803655,44.58158476,2720.8,2720.7,3.2078]
[1738714803959,44.58158476,2720.8,2719.7,3.2078]
[1738714803960,3.77606914,2720.6,2719.7,3.2078]
[1738714804155,40.8,2720.8,2719.7,3.2078]
[1738714804156,3.77606914,2719.8,2719.7,3.2078]
[1738714804660,3.77606914,2719.8,2719.5,3.2078]
[1738714804963,40.8,2719.8,2719.5,3.2078]
[1738714805152,40.8,2719.8,2719.5,8.2078]
[1738714805852,40.8,2719.8,2719.5,3.2078]
[1738714806766,40.8,2719.8,2719.5,8.2078]
[1738714806966,0.5965,2720.7,2719.5,8.2078]
[1738714807267,3.77606914,2720.7,2720.4,3.2078]
[1738714808769,40.8,2720.6,2720.4,3.2078]
[1738714809159,3.77606914,2720.5,2720.4,3.2078]
[1738714810260,44.57606914,2720.5,2720.4,3.2078]
[1738714811061,44.57606914,2720.5,2719.8,3.2078]
[1738714811265,3.77606914,2719.9,2719.8,3.2078]
[1738714811960,44.57606914,2719.9,2719.8,3.2078]
[1738714812158,44.57606914,2719.9,2719.0,4.874]
[1738714812159,44.57606914,2719.9,2719.4,3.21331562]
[1738714812467,44.57606914,2719.9,2718.7,3.2078]
[1738714812468,3.77606914,2719.5,2718.7,3.2078]
[1738714812665,3.77606914,2718.8,2718.7,3.2078]
[1738714813966,0.00551562,2719.0,2718.7,7.14729796]
[1738714814164,0.00551562,2719.0,2718.7,12.14729796]
[1738714814869,3.78158476,2719.0,2718.7,7.14729796]
[1738714815168,0.00551562,2719.0,2718.7,7.14729796]
[1738714815361,0.00551562,2719.0,2718.7,3.2078]
[1738714815362,3.78158476,2719.0,2718.7,3.2078]
[1738714815758,0.00551562,2719.0,2718.7,3.2078]
[1738714815959,3.77606914,2718.8,2718.7,3.2078]
[1738714816265,3.77606914,2718.9,2718.7,3.2078]
[1738714816463,3.77606914,2718.8,2718.7,3.2078]
[1738714816862,3.77606914,2718.8,2718.5,0.00551562]
[1738714817057,3.77606914,2718.6,2718.5,0.00551562]
[1738714817570,3.77606914,2718.6,2717.8,4.874]
[1738714817758,3.77606914,2718.0,2717.9,4.874]
[1738714818071,3.77606914,2717.9,2717.6,3.2078]
[1738714818266,3.77606914,2717.8,2717.6,3.2078]
[1738714818467,3.2078,2718.2,2716.9,18.76988625]
[1738714818468,3.77606914,2717.7,2717.3,3.2078]
[1738714818667,3.2078,2718.2,2717.8,0.00551562]
[1738714819071,3.77606914,2717.9,2717.8,0.00551562]
[1738714819368,44.57606914,2717.9,2717.8,0.00551562]
[1738714821073,3.77606914,2717.9,2717.8,0.00551562]
[1738714821369,0.5467,2718.6,2717.8,0.00551562]
[1738714821370,0.5467,2718.6,2717.8,13.8230352]
[1738714821571,3.77606914,2718.3,2718.2,3.2078]
[1738714822564,40.8,2718.8,2718.2,3.2078]
[1738714822767,3.2078,2719.6,2718.6,3.94351958]
[1738714822969,2.32911476,2719.0,2718.9,3.2078]
[1738714823171,40.8,2719.5,2718.9,3.2078]
[1738714823469,2.32911476,2719.2,2718.8,3.2078]
[1738714823664,2.32911476,2719.0,2718.8,3.2078]
[1738714824070,40.8,2719.5,2718.8,3.2078]
[1738714824271,2.32911476,2719.3,2719.0,3.2078]
[1738714824470,2.32911476,2719.3,2719.2,3.2078]
[1738714825073,0.00551562,2719.4,2719.2,3.2078]
[1738714825269,2.32911476,2719.3,2719.2,3.2078]
[1738714827073,2.32911476,2719.3,2718.9,8.0818]
[1738714827267,2.32911476,2719.1,2718.9,4.874]
[1738714827468,0.00551562,2719.4,2718.9,4.874]
[1738714827673,0.00551562,2719.4,2719.3,3.2078]
[1738714828070,0.00551562,2719.4,2719.3,8.0818]